bitfinex-derivatives/quotes_ETHF0:USTF0_20250614
["timestamp","ask_amount","ask_price","bid_price","bid_amount"]
[1749933317634,0.79828,2504.4,2504.3,6.60602551]
[1749933317816,0.79828,2504.4,2504.3,0.00402551]
[1749933318021,4.00608,2504.4,2504.3,0.00402551]
[1749933320028,0.79844,2503.9,2503.8,1.374]
[1749933320324,0.79851,2503.7,2503.6,1.46062]
[1749933320524,0.7985,2503.8,2503.7,0.79851]
[1749933320731,3.2078,2504.1,2503.7,0.79849]
[1749933320929,3.2078,2504.1,2503.6,0.6621]
[1749933321230,0.79851,2503.7,2503.6,0.6621]
[1749933321529,0.79856,2503.6,2503.4,10.78937]
[1749933321828,3.2078,2503.8,2503.3,3.2078]
[1749933322024,3.2078,2503.8,2503.7,0.79848]
[1749933322825,0.79843,2504.0,2503.8,0.79845]
[1749933323031,3.2078,2504.1,2503.9,0.79844]
[1749933323331,0.79843,2504.0,2503.9,0.79843]
[1749933323530,3.2078,2504.1,2503.7,1.3838]
[1749933323721,0.79843,2504.0,2503.9,0.79844]
[1749933323921,0.79847,2503.8,2503.7,1.3838]
[1749933324120,0.79848,2503.8,2503.7,0.79849]
[1749933324327,3.2078,2504.1,2503.6,3.2078]
[1749933324529,3.2078,2504.1,2503.6,4.00632]
[1749933324725,0.79851,2503.7,2503.6,4.00632]
[1749933325329,3.2078,2504.1,2503.6,3.2078]
[1749933325534,4.0062,2504.1,2503.6,5.20411]
[1749933325727,3.2078,2504.1,2503.8,0.79845]
[1749933326031,0.79844,2504.0,2503.9,0.79844]
[1749933326428,3.2078,2504.1,2504.0,0.79841]
[1749933326730,4.00618,2504.1,2504.0,0.79841]
[1749933327132,3.2078,2504.1,2504.0,0.79841]
[1749933328021,3.2078,2504.1,2504.0,2.18551]
[1749933328226,4.00618,2504.1,2504.0,1.3871]
[1749933328421,0.79841,2504.0,2503.9,0.6877]
[1749933328731,5.20379,2504.1,2503.7,0.7985]
[1749933329036,1.99603,2504.0,2503.6,3.2078]
[1749933329231,1.99603,2504.0,2503.3,1.362]
[1749933329232,3.2078,2503.7,2503.3,1.362]
[1749933329533,0.7986,2503.4,2503.3,1.362]
[1749933329836,0.7986,2503.4,2503.3,2.16063]
[1749933330132,0.79858,2503.5,2503.4,0.79858]
[1749933330331,0.7986,2503.4,2503.3,1.362]
[1749933330526,0.79867,2503.2,2503.1,1.3741]
[1749933330726,0.7987,2503.1,2503.0,9.9948]
[1749933330934,0.79868,2503.2,2503.1,0.79868]
[1749933331134,0.7987,2503.1,2503.0,4.00651]
[1749933331824,0.7987,2503.1,2502.9,0.6421]
[1749933331825,0.0059891,2503.4,2503.3,0.79863]
[1749933333027,0.0059891,2503.4,2503.3,1.48333]
[1749933333330,2.35885649,2504.5,2503.8,1.99614]
[1749933333533,3.8568,2504.8,2504.2,3.2078]
[1749933333737,0.79828,2504.4,2504.3,1.3175]
[1749933333937,0.40359907,2504.7,2504.2,3.2078]
[1749933334135,0.79832,2504.3,2504.2,2.11583]
[1749933334328,3.2078,2504.5,2504.3,0.79831]
[1749933334329,0.7983,2504.4,2504.3,0.79831]
[1749933334836,3.2137891,2504.5,2504.3,0.7983]
[1749933335134,4.0120691,2504.5,2504.4,0.79828]
[1749933335935,3.2137891,2504.5,2504.4,0.79828]
[1749933336330,0.79829,2504.4,2504.3,0.7983]
[1749933336530,3.2137891,2504.5,2504.2,1.3175]
[1749933336732,0.7983,2504.4,2504.3,0.79831]
[1749933337333,0.0059891,2504.5,2504.4,0.79828]
[1749933343039,0.0059891,2504.5,2504.4,5.79828]
[1749933343247,0.79808,2505.1,2505.0,0.79808]
[1749933343438,1.04423694,2505.1,2505.0,0.79808]
[1749933343745,1.04423694,2505.1,2505.0,4.00588]
[1749933344140,0.79794,2505.5,2505.0,3.2078]
[1749933344350,1.04510043,2505.4,2505.3,4.0058]
[1749933344538,0.0059891,2505.5,2505.4,0.79797]
[1749933344733,0.0059891,2505.5,2505.4,2.84267]
[1749933344945,0.0059891,2505.5,2505.3,3.2078]
[1749933345242,0.0059891,2505.5,2505.4,0.79797]
[1749933345648,0.0059891,2505.5,2505.4,2.17787]
[1749933346851,0.0059891,2505.5,2505.4,2.84267]
[1749933347348,0.6767,2506.1,2505.4,2.84267]
[1749933347349,1.47446,2506.1,2505.4,7.0447]
[1749933347553,1.04262527,2506.0,2505.9,0.79781]
[1749933348150,1.84039527,2506.0,2505.9,0.79781]
[1749933348345,1.47445,2506.1,2505.7,3.2137891]
[1749933348561,1.47445,2506.1,2505.9,0.7978]
[1749933348750,0.79777,2506.0,2505.9,0.7978]
[1749933348952,0.79777,2506.0,2505.8,1.2973]
[1749933348953,0.0059891,2506.2,2505.8,1.2973]
[1749933349255,0.8037191,2506.2,2506.0,0.79777]
[1749933349649,0.8037091,2506.2,2506.1,0.79774]
[1749933349958,0.79774,2506.1,2506.0,0.79775]
[1749933350554,0.0059891,2506.2,2505.8,1.2973]
[1749933350756,0.79774,2506.1,2506.0,0.79775]
[1749933351861,0.8037191,2506.2,2506.0,0.79775]
[1749933352056,0.79774,2506.1,2506.0,0.79775]
[1749933352255,0.8037191,2506.2,2506.0,0.79775]
[1749933352755,0.0059891,2506.2,2506.1,0.79774]
[1749933353258,0.0059891,2506.2,2506.1,27.33844]
[1749933353554,0.79753,2506.8,2506.3,1.9942]
[1749933353759,0.79759,2506.6,2506.5,0.7976]
[1749933354268,0.79756,2506.7,2506.6,0.79757]
[1749933354567,0.79756,2506.7,2506.6,0.79758]
[1749933355361,0.79754,2506.8,2506.7,0.79755]
[1749933355551,0.79756,2506.7,2506.6,0.79757]
[1749933355953,0.79758,2506.6,2506.5,3.2078]
[1749933356163,0.79774,2506.1,2506.0,0.79775]
[1749933356364,1.3124,2506.5,2506.1,0.79774]
[1749933356553,0.79777,2506.0,2505.9,3.8481]
[1749933356762,0.79784,2505.8,2505.7,0.0059891]
[1749933357156,0.79803,2505.2,2505.1,8.1861]
[1749933357356,3.30709,2505.7,2505.1,6.803]
[1749933357557,0.79802,2505.3,2505.1,7.60104]
[1749933357755,0.79803,2505.2,2505.1,6.803]
[1749933358060,1.3124,2505.7,2505.0,3.2078]
[1749933358365,0.0059891,2505.4,2505.0,3.2078]
[1749933358661,0.79801,2505.3,2505.2,0.79803]
[1749933359464,0.79805,2505.2,2505.0,3.2078]
[1749933359669,0.0059891,2505.4,2505.2,0.798]
[1749933359865,0.798,2505.3,2505.2,0.798]
[1749933360066,0.798,2505.3,2505.1,0.79804]
[1749933360266,0.0059891,2505.4,2505.0,4.00587]
[1749933360566,1.3008891,2505.4,2505.1,0.79806]
[1749933360767,1.3008891,2505.4,2505.2,0.79802]
[1749933360768,0.798,2505.3,2505.2,0.79802]
[1749933360967,0.0059891,2505.4,2505.3,0.798]
[1749933361353,0.0059891,2505.4,2505.0,3.2078]
[1749933361559,0.79805,2505.2,2505.0,4.00588]
[1749933361759,0.79805,2505.2,2505.0,4.00587]
[1749933361956,0.79806,2505.1,2505.0,3.2078]
[1749933362170,4.5444891,2505.4,2505.0,3.2078]
[1749933362467,0.79802,2505.3,2505.0,3.2078]
[1749933362664,0.79802,2505.3,2505.2,0.79803]
[1749933363170,3.2137891,2505.4,2505.0,28.4248]
[1749933363467,4.0117591,2505.4,2505.3,0.798]
[1749933363655,0.0059891,2505.4,2505.2,0.79801]
[1749933364056,0.0059891,2505.4,2505.3,0.798]
[1749933364261,0.0059891,2505.4,2505.3,4.0058]
[1749933364963,0.0059891,2505.4,2505.3,10.8088]
[1749933365563,3.2078,2506.1,2506.0,0.79777]
[1749933365768,4.00554,2506.1,2506.0,0.79777]
[1749933365973,3.2078,2506.1,2506.0,0.79777]
[1749933366268,0.79772,2506.2,2505.8,32.007]
[1749933366460,3.8872,2506.4,2505.9,1.3891]
[1749933366664,0.79773,2506.2,2505.8,32.007]
[1749933366867,2.1853,2506.3,2505.8,33.3961]
[1749933367069,0.0059891,2506.4,2505.9,3.2078]
[1749933367269,0.0059891,2506.4,2506.0,1.3891]
[1749933367468,0.79768,2506.3,2506.2,0.79771]
[1749933367670,0.8036591,2506.4,2506.2,26.00271]
[1749933367868,0.8036591,2506.4,2506.3,0.79768]
[1749933368472,0.79768,2506.3,2506.2,26.00269]
[1749933368672,0.0059891,2506.4,2506.1,0.79773]
[1749933368868,0.0059891,2506.4,2506.1,25.99673]
[1749933369069,0.79771,2506.3,2506.1,25.99673]
[1749933369275,0.79771,2506.2,2506.1,25.99673]
[1749933369471,0.8036491,2506.4,2506.2,0.79769]
[1749933369670,0.0059891,2506.4,2506.3,0.79768]
[1749933369971,0.8036391,2506.4,2506.3,0.79768]
[1749933370371,0.0059891,2506.4,2506.3,0.79768]
[1749933370572,0.0059891,2506.4,2506.2,0.7977]
[1749933370772,0.8036491,2506.4,2506.3,0.79768]
[1749933370970,0.0059891,2506.4,2506.3,0.79768]
[1749933371769,0.8036391,2506.4,2506.3,0.79768]
[1749933372077,0.8036491,2506.4,2506.3,0.79768]
[1749933372675,0.79771,2506.2,2506.1,25.99671]
[1749933372881,0.79777,2506.0,2505.9,10.0098]
[1749933373066,3.2137891,2506.4,2505.9,10.0098]
[1749933373378,1.84485763,2506.3,2506.2,0.79771]
[1749933373685,1.04716763,2506.3,2505.9,11.386]
[1749933373984,0.79777,2506.0,2505.9,10.80759]
[1749933375071,0.79774,2506.2,2506.1,0.79772]
[1749933375279,1.04777705,2506.2,2505.9,10.0098]
[1749933375480,0.79777,2506.0,2505.9,10.80758]
[1749933376085,1.3736,2506.3,2505.9,10.0098]
[1749933376279,0.79776,2506.1,2506.0,0.79776]
[1749933376582,1.84603608,2506.1,2506.0,0.79776]
[1749933377286,0.79777,2506.0,2505.9,10.0098]
[1749933377777,0.79776,2506.1,2506.0,0.79777]
[1749933377969,1.84630839,2506.1,2506.0,0.79777]
[1749933381181,1.04854839,2506.1,2506.0,0.79777]
[1749933381382,1.04854839,2506.1,2506.0,2.79957]
[1749933381982,1.84628839,2506.1,2506.0,2.79957]
[1749933382280,1.04854839,2506.1,2506.0,2.79957]
[1749933383179,1.84628839,2506.1,2506.0,1.49027]
[1749933383578,1.99452,2505.9,2505.4,3.2078]
[1749933383876,1.99484,2505.5,2504.9,6.7399891]
[1749933384082,3.2078,2505.2,2504.9,6.7399891]
[1749933384381,0.79809,2505.1,2505.0,0.79808]
[1749933384581,3.30386,2505.4,2504.9,6.7399891]
[1749933384582,0.79801,2505.3,2505.2,0.79801]
[1749933384886,4.00575,2505.5,2505.4,0.79797]
[1749933385081,0.79797,2505.4,2505.3,1.46708]
[1749933385287,1.84558432,2505.4,2505.3,26.59808]
[1749933385585,0.79794,2505.5,2505.4,0.79794]
[1749933385780,0.79797,2505.4,2505.3,26.59808]
[1749933385976,0.79797,2505.4,2505.3,25.8001]
[1749933386285,0.79795,2505.5,2505.4,0.79795]
[1749933386482,1.84586078,2505.5,2505.4,0.79797]
[1749933386783,0.79797,2505.4,2505.3,26.59808]
[1749933387580,4.00577,2505.4,2505.3,25.131]
[1749933387887,4.00577,2505.4,2504.9,0.0059891]
[1749933387888,0.79809,2505.0,2504.9,0.0059891]
[1749933388088,0.79808,2505.1,2504.9,25.1149891]
[1749933388288,0.79808,2505.1,2505.0,0.79808]
[1749933388982,0.79808,2505.1,2504.9,25.1149891]
[1749933388983,1.3599,2505.3,2504.9,25.1149891]
[1749933389484,0.79804,2505.2,2505.1,0.79805]
[1749933390081,0.79807,2505.1,2505.0,0.79807]
[1749933390388,0.79804,2505.2,2505.1,0.79805]
[1749933390887,0.79809,2505.0,2504.9,0.0059891]
[1749933391386,0.79809,2505.0,2504.9,0.8040991]
[1749933391589,0.79809,2505.0,2504.9,0.0059891]
[1749933392187,0.79809,2505.0,2504.9,0.8041091]
[1749933392387,0.79809,2505.0,2504.9,0.0059891]
[1749933392584,4.00589,2505.0,2504.9,0.0059891]
[1749933393588,0.79808,2505.1,2505.0,0.79807]
[1749933394290,0.79805,2505.2,2505.1,0.79806]
[1749933394677,0.79805,2505.2,2504.9,0.0059891]
[1749933394678,0.79809,2505.1,2505.0,0.79808]
[1749933394882,0.79809,2505.0,2504.9,0.0059891]
[1749933395092,4.00589,2505.0,2504.9,0.0059891]
[1749933395589,5.32459,2505.0,2504.9,0.0059891]
[1749933396388,10.32459,2505.0,2504.9,0.0059891]
[1749933397385,5.32459,2505.0,2504.9,0.0059891]
[1749933398690,1.99536,2504.9,2504.4,0.79826]
[1749933398989,0.79832,2504.3,2504.2,3.8421]
[1749933399387,0.79832,2504.3,2504.2,3.2078]
[1749933399591,0.79831,2504.4,2504.2,3.2078]
[1749933399793,0.79832,2504.3,2504.2,3.2078]
[1749933400186,0.79832,2504.3,2504.2,4.00615]
[1749933401193,0.79838,2504.1,2504.0,0.0059891]
[1749933401388,3.2078,2504.3,2504.0,0.0059891]
[1749933401389,0.79836,2504.2,2504.1,0.79836]
[1749933401595,0.79826,2504.5,2504.4,0.79825]
[1749933401794,0.79838,2504.1,2504.0,0.8043891]
[1749933402089,0.79838,2504.1,2504.0,0.0059891]
[1749933402290,3.2078,2504.3,2504.0,0.0059891]
[1749933402494,6.7429891,2504.6,2504.0,1.3767891]
[1749933402791,0.79833,2504.3,2504.2,0.79831]
[1749933403394,0.79837,2504.2,2504.1,0.79836]
[1749933403693,10.0209691,2504.6,2504.0,1.3767891]
[1749933403992,0.79835,2504.3,2504.2,0.79833]
[1749933404296,0.79838,2504.2,2504.1,0.79836]
[1749933404893,0.79833,2504.3,2504.2,0.79831]
[1749933406290,0.0059891,2504.6,2504.0,1.3767891]
[1749933406497,0.0059891,2504.6,2504.5,0.79825]
[1749933406988,0.0059891,2504.6,2504.5,3.44655]
[1749933411197,0.8042091,2504.6,2504.5,3.44655]
[1749933411399,0.0059891,2504.6,2504.5,3.44655]
[1749933413198,0.8042091,2504.6,2504.5,0.6847]
[1749933413398,0.8042091,2504.6,2504.5,1.48295]
[1749933413599,0.8042091,2504.6,2504.5,0.6847]
[1749933413800,0.8042091,2504.6,2504.5,1.48295]
[1749933414496,0.0059891,2504.6,2504.5,1.48295]
[1749933415995,1.3314,2505.5,2504.9,1.99532]
[1749933416195,1.04653144,2505.4,2505.3,0.798]
[1749933416502,1.84450144,2505.4,2505.3,0.798]
[1749933416706,0.79801,2505.3,2505.2,0.79801]
[1749933417703,0.79798,2505.4,2505.3,0.79799]
[1749933417893,1.84483823,2505.4,2505.3,0.79799]
[1749933418097,0.79802,2505.3,2505.2,0.79802]
[1749933418301,0.0059891,2505.5,2505.1,3.2078]
[1749933418800,0.79801,2505.3,2505.2,0.79801]
[1749933419198,0.79798,2505.4,2505.3,0.79797]
[1749933419797,0.798,2505.3,2505.2,2.15761]
[1749933420104,0.79803,2505.2,2505.1,3.2078]
[1749933420302,0.79801,2505.3,2505.1,3.2078]
[1749933420498,0.79803,2505.2,2505.1,4.5674]
[1749933420898,0.79803,2505.2,2505.1,5.36546]
[1749933421101,0.79801,2505.3,2505.2,0.79801]
[1749933421804,0.0059891,2505.5,2505.1,5.36545]
[1749933421805,0.79803,2505.2,2505.1,5.36545]
[1749933422401,0.79797,2505.4,2505.3,0.79798]
[1749933422607,0.79801,2505.3,2505.2,0.79801]
[1749933422802,0.79806,2505.1,2505.0,0.6299]
[1749933423007,0.79822,2504.6,2504.5,10.66602]
[1749933423202,0.79821,2504.7,2504.6,0.7982]
[1749933423402,0.79818,2504.8,2504.7,0.79817]
[1749933423808,0.7982,2504.7,2504.6,0.7982]
[1749933424005,0.79822,2504.6,2504.5,4.00604]
[1749933424210,0.79822,2504.6,2504.5,3.2078]
[1749933425203,0.79822,2504.6,2504.3,1.2717]
[1749933425204,5.20312,2504.9,2504.3,26.2187]
[1749933425409,3.03954207,2504.8,2504.3,27.5663]
[1749933425601,0.79827,2504.5,2504.4,0.79826]
[1749933425907,3.2078,2504.9,2504.3,27.5663]
[1749933426108,0.79823,2504.6,2504.5,0.79823]
[1749933427409,0.79826,2504.5,2504.3,27.5663]
[1749933427608,0.79828,2504.4,2504.3,27.018]
[1749933428211,0.79823,2504.6,2504.5,0.79823]
[1749933429707,1.3026,2504.8,2504.4,0.79825]
[1749933429912,0.79828,2504.4,2504.3,28.3737]
[1749933430106,0.79828,2504.4,2504.3,26.3843]
[1749933430405,1.3026,2504.8,2504.4,0.79826]
[1749933430406,0.79826,2504.5,2504.4,0.79826]
[1749933430615,3.29802,2504.8,2504.3,0.638]
[1749933430807,0.79827,2504.5,2504.4,0.79826]
[1749933431004,0.79828,2504.4,2504.3,1.43628]
[1749933431205,0.79827,2504.5,2504.4,0.79827]
[1749933432307,3.2078,2504.7,2504.3,0.638]
[1749933432515,2.07351,2504.7,2504.6,0.79822]
[1749933432708,9.02313556,2505.4,2504.7,1.99547]
[1749933432906,1.04573675,2505.3,2504.8,3.2078]
[1749933433112,0.79811,2505.0,2504.9,0.7981]
[1749933433305,0.79807,2505.1,2505.0,0.79807]
[1749933433503,0.79812,2505.0,2504.9,0.79812]
[1749933434016,0.79812,2504.9,2504.8,1.44574]
[1749933434209,0.79809,2505.1,2505.0,0.79807]
[1749933434903,0.79811,2505.0,2504.9,0.7981]
[1749933435502,0.79812,2504.9,2504.8,1.44573]
[1749933435704,3.2078,2505.2,2504.8,0.6476]
[1749933435902,0.79812,2504.9,2504.8,26.39373]
[1749933436106,0.79812,2504.9,2504.8,25.5956]
[1749933436406,0.79812,2504.9,2504.8,0.6476]
[1749933436808,0.79812,2504.9,2504.8,1.44575]
[1749933437520,3.2078,2505.2,2504.8,3.8554]
[1749933437820,4.00584,2505.2,2505.1,0.79806]
[1749933438120,5.05246448,2505.2,2505.1,0.79806]
[1749933438313,4.25442448,2505.2,2505.1,0.79806]
[1749933438615,3.2078,2505.2,2505.1,0.79806]
[1749933439020,0.79803,2505.2,2505.1,3.2078]
[1749933439313,0.79803,2505.2,2505.1,4.00586]
[1749933439515,0.79801,2505.3,2505.2,0.79799]
[1749933439813,1.84466976,2505.3,2505.2,0.79799]
[1749933440515,0.79803,2505.2,2505.1,4.00584]
[1749933441018,0.0059891,2505.5,2505.2,0.79798]
[1749933441019,0.79801,2505.3,2505.2,0.79798]
[1749933441219,0.79801,2505.4,2505.3,0.79798]
[1749933441415,1.84428482,2505.4,2505.3,0.79798]
[1749933442319,0.79801,2505.4,2505.3,0.79798]
[1749933442516,0.798,2505.3,2505.2,1.3906]
[1749933442722,0.79803,2505.2,2505.1,3.2078]
[1749933443320,0.79803,2505.2,2505.1,4.00586]
[1749933443921,0.79802,2505.3,2505.2,0.798]
[1749933444423,0.0059891,2505.5,2505.4,0.79796]
[1749933444727,0.79799,2505.4,2505.3,0.79797]
[1749933445425,0.79799,2505.4,2505.3,1.47587]
[1749933447422,3.2078,2506.0,2505.3,37.2529]
[1749933447624,2.6446,2506.5,2505.8,1.9946]
[1749933447927,0.79774,2506.1,2506.0,0.79777]
[1749933448323,3.05354506,2506.5,2505.9,27.5973]
[1749933448522,1.04572948,2506.4,2506.0,3.2078]
[1749933448826,1.3667891,2506.5,2506.0,4.5494]
[1749933448827,1.04572948,2506.3,2506.0,4.5494]
[1749933449027,0.7977,2506.3,2506.2,0.79768]
[1749933449727,0.7005891,2506.5,2506.0,4.5494]
[1749933449921,1.04463513,2506.4,2506.0,4.5494]
[1749933450121,0.79771,2506.3,2506.2,0.7977]
[1749933450723,0.8036191,2506.5,2506.4,0.79765]
[1749933451427,0.79765,2506.4,2506.3,4.00547]
[1749933451630,0.79765,2506.4,2506.3,0.79767]
[1749933452121,0.8036291,2506.5,2506.4,0.79765]
[1749933452426,0.8036191,2506.5,2506.4,0.79765]
[1749933452827,0.0059891,2506.5,2506.3,3.2078]
[1749933453021,0.8036291,2506.5,2506.4,0.79765]
[1749933453425,0.79765,2506.4,2506.3,4.00546]
[1749933454327,0.8036191,2506.5,2506.4,0.79765]
[1749933454629,0.8036191,2506.5,2506.4,0.648]
[1749933456228,0.0059891,2506.5,2506.3,3.2078]
[1749933456436,0.79774,2506.1,2506.0,3.8558]
[1749933456633,0.79774,2506.1,2506.0,1.44577]
[1749933456827,0.79774,2506.1,2506.0,0.648]
[1749933457030,0.79777,2506.0,2505.9,0.0059891]
[1749933458427,0.79776,2506.1,2505.9,0.0059891]
[1749933458630,1.44444,2506.2,2505.9,1.3779891]
[1749933458825,1.44444,2506.2,2506.1,0.79774]
[1749933459129,0.79774,2506.2,2506.1,0.79774]
[1749933459727,0.6489,2506.4,2505.9,1.3779891]
[1749933459927,0.79777,2506.0,2505.9,2.1757791]
[1749933460124,0.79777,2506.0,2505.9,1.3779891]
[1749933460324,0.79777,2506.0,2505.9,0.0059891]
[1749933461724,0.79777,2506.0,2505.9,0.8037891]
[1749933464437,0.79777,2506.0,2505.9,0.0059891]
[1749933465138,0.79777,2506.0,2505.9,0.8037991]
[1749933465336,3.96025,2506.4,2505.9,0.0059891]
[1749933465536,10.59025,2506.4,2505.9,0.0059891]
[1749933465728,0.79777,2506.1,2506.0,0.79775]
[1749933467136,0.79777,2506.1,2506.0,2.14555]
[1749933468335,0.79777,2506.1,2506.0,0.79775]
[1749933468539,0.79777,2506.0,2505.9,0.8037691]
[1749933468934,0.79777,2506.0,2505.9,0.0059891]
[1749933469537,0.79777,2506.0,2505.9,0.8037991]
[1749933473147,0.79777,2506.0,2505.9,0.0059891]
[1749933473739,0.79777,2506.0,2505.9,0.8037991]
[1749933473943,0.79777,2506.0,2505.9,0.0059891]
[1749933474242,0.79777,2506.0,2505.9,9.1e-06]
[1749933474243,12.42277,2506.0,2505.9,9.1e-06]
[1749933474547,13.46744858,2506.0,2505.9,9.1e-06]
[1749933474935,6.84244858,2506.0,2505.9,9.1e-06]
[1749933475137,9.73564858,2506.0,2505.9,9.1e-06]
[1749933475549,1.84244858,2506.0,2505.9,9.1e-06]
[1749933476951,1.84244858,2506.0,2505.9,0.7978191]
[1749933477351,1.04467858,2506.0,2505.9,0.7978191]
[1749933477843,0.79776,2506.1,2506.0,0.79777]
[1749933478046,0.6526891,2506.5,2506.0,3.37024]
[1749933478245,1.05540703,2506.4,2506.3,0.79768]
[1749933478457,0.79768,2506.3,2506.2,4.00549]
[1749933478752,1.85308703,2506.3,2506.2,4.00549]
[1749933479250,0.79768,2506.3,2506.2,4.69459]
[1749933479746,0.79768,2506.3,2506.2,0.6891]
[1749933479946,1.85314359,2506.3,2506.2,0.6891]
[1749933480648,0.79777,2506.0,2505.9,9.1e-06]
[1749933480848,5.06088821,2506.0,2505.9,9.1e-06]
[1749933481346,16.68588821,2506.0,2505.9,9.1e-06]
[1749933481849,19.04802377,2506.0,2505.9,9.1e-06]
[1749933482048,16.68588821,2506.0,2505.9,9.1e-06]
[1749933482446,20.41942377,2506.0,2505.9,9.1e-06]
[1749933482645,20.43541502,2506.0,2505.9,9.1e-06]
[1749933482847,18.05728821,2506.0,2505.9,9.1e-06]
[1749933483052,20.43536115,2506.0,2505.9,9.1e-06]
[1749933483261,18.05728821,2506.0,2505.9,9.1e-06]
[1749933483654,20.43450622,2506.0,2505.9,9.1e-06]
[1749933483948,13.80950622,2506.0,2505.9,9.1e-06]
[1749933484149,15.43550622,2506.0,2505.9,9.1e-06]
[1749933484451,13.05828821,2506.0,2505.9,9.1e-06]
[1749933486853,6.43228821,2506.0,2505.9,9.1e-06]
[1749933487054,13.05828821,2506.0,2505.9,9.1e-06]
[1749933487356,6.43228821,2506.0,2505.9,9.1e-06]
[1749933487557,13.05828821,2506.0,2505.9,9.1e-06]
[1749933488057,12.00297,2506.0,2505.9,9.1e-06]
[1749933488257,13.05656655,2506.0,2505.9,9.1e-06]
[1749933492554,5.05916655,2506.0,2505.9,9.1e-06]
[1749933492760,1.85136655,2506.0,2505.9,9.1e-06]
[1749933493154,0.79777,2506.0,2505.9,9.1e-06]
[1749933493460,11.1531,2506.4,2505.9,9.1e-06]
[1749933493461,0.79777,2506.1,2506.0,0.79776]
[1749933493656,0.79772,2506.2,2506.0,1.3066]
[1749933493963,0.7977,2506.3,2506.2,0.79769]
[1749933494465,0.79767,2506.4,2506.3,0.79768]
[1749933494662,0.79769,2506.3,2506.2,0.79769]
[1749933495465,0.8036291,2506.5,2506.4,0.79765]
[1749933495764,0.79766,2506.4,2506.3,0.79766]
[1749933495956,0.8036191,2506.5,2506.4,0.79765]
[1749933496158,1.8567581,2506.5,2506.4,0.79765]
[1749933497160,1.8567581,2506.5,2506.4,2.15005]
[1749933497366,1.8567581,2506.5,2506.4,1.3524]
[1749933497560,1.0591281,2506.5,2506.4,2.15005]
[1749933497759,1.8567381,2506.5,2506.4,2.15005]
[1749933498560,0.8035991,2506.5,2506.4,2.15005]
[1749933499966,1.85562059,2506.5,2506.4,1.3524]
[1749933500164,1.85562059,2506.5,2506.4,2.15005]
[1749933500374,0.8035991,2506.5,2506.4,2.15005]
[1749933501965,0.8035991,2506.5,2506.4,1.3524]
[1749933502167,0.8035991,2506.5,2506.4,2.15005]
[1749933503171,24.802,2507.0,2506.4,2.15005]
[1749933503172,3.2078,2507.3,2506.6,0.79758]
[1749933503372,0.79745,2507.1,2507.0,0.79744]
[1749933503570,0.79742,2507.2,2507.1,0.79741]
[1749933503767,0.79735,2507.4,2507.1,0.79741]
[1749933503961,1.05149317,2507.3,2507.2,2.16549]
[1749933504162,0.79734,2507.4,2507.3,0.79736]
[1749933504367,1.05158777,2507.4,2507.3,2.08916]
[1749933504677,0.79733,2507.4,2507.3,2.08916]
[1749933505171,0.8032991,2507.5,2507.4,0.79733]
[1749933505474,0.0059891,2507.5,2507.4,2.08913]
[1749933506666,0.8032891,2507.5,2507.4,1.2918]
[1749933507270,0.0059891,2507.5,2507.4,1.2918]
[1749933507572,0.0059891,2507.5,2507.4,2.08913]
[1749933508277,0.8032891,2507.5,2507.4,2.08913]
[1749933508476,0.0059891,2507.5,2507.4,2.08913]
[1749933508872,0.8032891,2507.5,2507.4,2.08913]
[1749933509078,0.0059891,2507.5,2507.4,2.08913]
[1749933509376,0.0059891,2507.5,2507.4,7.08913]
[1749933514070,0.79719,2507.9,2507.8,0.79717]
[1749933514276,4.00496,2508.0,2507.9,0.79717]
[1749933514472,0.79712,2508.1,2508.0,0.79713]
[1749933514677,3.2078,2508.3,2507.8,1.3121]
[1749933514678,0.7971,2508.2,2507.8,1.3121]
[1749933514881,0.79711,2508.1,2508.0,0.79712]
[1749933515188,0.7971,2508.2,2508.1,0.79711]
[1749933515380,0.79707,2508.2,2507.8,1.3121]
[1749933515782,0.79708,2508.2,2508.1,0.79709]
[1749933516685,3.21178364,2508.3,2508.2,0.79707]
[1749933516884,0.00398364,2508.3,2508.2,2.74277]
[1749933517778,3.2078,2508.7,2508.5,0.79695]
[1749933517981,1.99238,2508.6,2508.2,0.6349]
[1749933518280,0.79707,2508.3,2508.2,7.41206]
[1749933518478,0.79703,2508.4,2508.3,0.79704]
[1749933518675,0.6926,2508.5,2508.2,6.615]
[1749933518884,3.29317,2508.9,2508.2,7.9258]
[1749933519081,0.79696,2508.6,2508.5,0.79696]
[1749933520487,3.2078,2509.0,2508.4,1.99253]
[1749933520691,0.79685,2509.0,2508.9,0.79684]
[1749933521091,0.79678,2509.2,2509.1,0.79677]
[1749933521386,0.79681,2509.1,2509.0,0.79681]
[1749933521586,0.6798,2509.5,2508.9,4.4981891]
[1749933521788,3.2078,2509.6,2508.9,4.4981891]
[1749933522086,0.6916,2509.7,2509.0,1.99203]
[1749933522292,3.2078,2509.8,2509.2,4.00454]
[1749933522491,0.79671,2509.4,2509.3,7.41072]
[1749933522689,0.79667,2509.5,2509.4,0.79667]
[1749933523086,0.79669,2509.4,2509.3,7.9474]
[1749933523893,0.79669,2509.4,2509.3,6.614]
[1749933525897,0.79682,2509.0,2508.9,0.0059891]
[1749933526099,4.00462,2509.0,2508.9,0.0059891]
[1749933526697,0.79708,2508.2,2508.1,25.68208]
[1749933526996,0.79708,2508.2,2508.1,32.29508]
[1749933527297,0.79714,2508.0,2507.9,24.119]
[1749933527497,0.79714,2508.0,2507.9,55.616]
[1749933528195,0.79714,2508.0,2507.9,24.119]
[1749933528498,0.79714,2508.0,2507.9,55.615]
[1749933529097,0.79714,2508.0,2507.9,56.41217]
[1749933529289,0.0059891,2508.2,2507.9,55.615]
[1749933529497,0.0059891,2508.2,2508.1,0.79711]
[1749933531098,0.6616,2509.0,2508.1,5.0]
[1749933531301,0.79697,2508.6,2508.4,0.79699]